bitfinex/quotes_BTCUSD_20260310
["timestamp","ask_amount","ask_price","bid_price","bid_amount"]
[1773184418918,0.00144,69838.0,69818.0,0.00485841]
[1773184419243,0.00144,69838.0,69820.0,0.00485841]
[1773184419422,0.07303479,69838.0,69822.0,0.00485841]
[1773184419998,0.00144,69838.0,69822.0,0.00485841]
[1773184420201,0.0715937,69839.0,69822.0,0.00485841]
[1773184421241,0.0730337,69839.0,69822.0,0.00485841]
[1773184421386,0.0730337,69839.0,69824.0,0.00485841]
[1773184421590,0.0730337,69839.0,69825.0,0.00144]
[1773184421953,0.0730337,69839.0,69825.0,0.00128869]
[1773184422738,0.00480388,69836.0,69818.0,0.07161458]
[1773184424093,0.00480388,69834.0,69825.0,0.0002]
[1773184424288,0.00624388,69833.0,69825.0,0.0002]
[1773184425388,0.00480388,69832.0,69825.0,0.0002]
[1773184425708,0.00480388,69832.0,69818.0,0.0002]
[1773184426096,0.00480388,69830.0,69818.0,0.0002]
[1773184428450,0.00458906,69828.0,69818.0,0.0002]
[1773184429777,0.00489249,69826.0,69816.0,0.00593211]
[1773184430749,0.00489249,69825.0,69809.0,0.0002]
[1773184430923,0.00489249,69825.0,69809.0,0.07219728]
[1773184431278,0.14417075,69827.0,69810.0,0.00452794]
[1773184431479,0.07304559,69827.0,69810.0,0.00452794]
[1773184431704,0.00489249,69826.0,69810.0,0.00452794]
[1773184432466,0.00489249,69826.0,69816.0,0.0002]
[1773184432675,0.07160759,69825.0,69816.0,0.0002]
[1773184437799,0.00022001,69826.0,69816.0,0.0002]
[1773184438387,0.00022001,69826.0,69816.0,0.00472794]
[1773184438799,0.00022001,69826.0,69816.0,0.07634427]
[1773184441624,0.18529968,69835.0,69817.0,0.00452794]
[1773184441820,0.00489249,69839.0,69821.0,0.00452794]
[1773184441821,0.14272806,69834.0,69821.0,0.00452794]
[1773184441974,0.14272806,69834.0,69820.0,0.05472054]
[1773184441975,0.14416806,69837.0,69823.0,0.00452794]
[1773184442170,0.00144,69837.0,69823.0,0.00452794]
[1773184442805,0.07178947,69838.0,69824.0,0.07160861]
[1773184443049,0.07178947,69838.0,69825.0,0.00452794]
[1773184443243,0.0001951,69838.0,69825.0,0.00452794]
[1773184444920,0.0001951,69838.0,69826.0,0.07160656]
[1773184445189,0.0001951,69838.0,69826.0,0.0761345]
[1773184445997,0.00022001,69833.0,69826.0,0.0761345]
[1773184447363,0.0001951,69838.0,69827.0,0.00452794]
[1773184447577,0.14272806,69843.0,69830.0,0.05472054]
[1773184447773,0.00489249,69843.0,69826.0,0.07260656]
[1773184447951,0.07720838,69844.0,69831.0,0.00144]
[1773184448149,0.00489249,69843.0,69831.0,0.00144]
[1773184448350,0.00489249,69843.0,69826.0,0.07160656]
[1773184448555,0.00489249,69843.0,69827.0,0.00144]
[1773184448773,0.00589249,69843.0,69827.0,0.00144]
[1773184448982,0.00489249,69843.0,69827.0,0.00144]
[1773184449193,0.00489249,69841.0,69826.0,0.00144]
[1773184449369,0.00489249,69839.0,69826.0,0.00144]
[1773184449768,0.00144,69840.0,69826.0,0.00452794]
[1773184449974,0.00144,69840.0,69827.0,0.00452794]
[1773184451183,0.00144,69840.0,69828.0,0.07160451]
[1773184452754,0.07180918,69843.0,69831.0,0.00452794]
[1773184452755,0.00166001,69843.0,69831.0,0.00452794]
[1773184452936,0.11389643,69849.0,69830.0,0.0546896]
[1773184452937,0.14287461,69846.0,69832.0,0.00144]
[1773184453245,0.0001951,69849.0,69837.0,0.00452794]
[1773184453377,0.0001951,69849.0,69840.0,0.00452794]
[1773184453599,0.00489249,69848.0,69838.0,0.00144]
[1773184453836,0.00489249,69848.0,69837.0,0.00011199]
[1773184454063,0.00489249,69848.0,69837.0,0.00155199]
[1773184454729,0.00489249,69848.0,69838.0,0.001]
[1773184455339,0.00489249,69848.0,69839.0,0.07159323]
[1773184455894,0.00022001,69852.0,69839.0,0.07159323]
[1773184455895,0.00022001,69859.0,69840.0,0.00452794]
[1773184456098,0.17179802,69867.0,69839.0,0.07159323]
[1773184456099,0.0001951,69871.0,69850.0,0.00452794]
[1773184456334,0.0001951,69871.0,69860.0,0.0546896]
[1773184456616,0.0001951,69871.0,69861.0,0.00144]
[1773184456819,0.0001951,69871.0,69861.0,0.00596794]
[1773184457376,0.0001951,69871.0,69862.0,0.07156966]
[1773184457608,0.00011205,69871.0,69862.0,0.07156966]
[1773184463619,0.00011205,69871.0,69850.0,0.00023]
[1773184463620,0.00469844,69870.0,69859.0,0.00144]
[1773184463874,0.00469844,69870.0,69857.0,0.00144]
[1773184464244,0.00469844,69870.0,69856.0,0.00144]
[1773184464886,0.00469844,69870.0,69852.0,0.00463851]
[1773184465281,0.07178152,69870.0,69853.0,0.07157888]
[1773184465499,0.07178152,69870.0,69853.0,0.07621739]
[1773184465500,0.00469844,69869.0,69853.0,0.07621739]
[1773184466129,0.00144,69868.0,69853.0,0.07621739]
[1773184466483,0.00613844,69868.0,69853.0,0.07621739]
[1773184466855,0.00469844,69867.0,69835.0,0.07159713]
[1773184467233,0.00144,69868.0,69837.0,0.00463851]
[1773184467234,0.00469844,69865.0,69837.0,0.00463851]
[1773184467365,0.00469844,69865.0,69839.0,0.00463851]
[1773184467366,0.00469844,69863.0,69839.0,0.00463851]
[1773184467954,0.00469844,69861.0,69839.0,0.00463851]
[1773184468391,0.00469844,69861.0,69841.0,0.00463851]
[1773184469025,0.00469844,69861.0,69843.0,0.00463851]
[1773184469382,0.07157171,69860.0,69845.0,0.07158708]
[1773184469588,0.07627015,69860.0,69845.0,0.07158708]
[1773184469784,0.07627015,69860.0,69845.0,0.06933708]
[1773184470017,0.07627015,69860.0,69846.0,0.00144]
[1773184470219,0.07627015,69860.0,69842.0,0.07158708]
[1773184470220,0.24022405,69860.0,69833.0,0.07159836]
[1773184470417,0.24022405,69860.0,69834.0,0.00144]
[1773184471015,0.24022405,69860.0,69834.0,0.00607851]
[1773184471216,0.00469844,69859.0,69834.0,0.00607851]
[1773184471397,0.00469844,69859.0,69835.0,0.00463851]
[1773184471603,0.07157376,69858.0,69836.0,0.07159631]
[1773184471812,0.00469844,69856.0,69836.0,0.07623482]
[1773184474238,0.00469844,69854.0,69836.0,0.07623482]
[1773184476378,0.00469844,69852.0,69836.0,0.07623482]
[1773184476897,0.00469844,69852.0,69837.0,0.00463851]
[1773184478542,0.07157888,69854.0,69837.0,0.00463851]
[1773184478770,0.00469844,69854.0,69838.0,0.07159426]
[1773184481229,0.07157888,69853.0,69838.0,0.07159426]
[1773184481433,0.00469844,69852.0,69838.0,0.07159426]
[1773184485381,0.07158093,69851.0,69838.0,0.07159426]
[1773184487628,0.00481109,69855.0,69838.0,0.07159426]
[1773184488278,0.00481109,69855.0,69837.0,0.07159438]
[1773184488500,0.00481109,69855.0,69836.0,0.07643482]
[1773184488702,0.00481109,69855.0,69836.0,0.07179563]
[1773184488915,0.00481109,69855.0,69837.0,0.00144]
[1773184489119,0.00481109,69849.0,69837.0,0.00144]
[1773184490118,0.07158401,69848.0,69837.0,0.00144]
[1773184490325,0.07158401,69848.0,69837.0,0.00011199]
[1773184490539,0.0049124,69847.0,69837.0,0.00011199]
[1773184490688,0.0049124,69847.0,69836.0,0.0002]
[1773184490879,0.00502441,69847.0,69831.0,0.0016952]
[1773184491072,0.00502441,69847.0,69831.0,0.0002552]
[1773184491273,0.00502441,69847.0,69831.0,0.07329655]
[1773184491827,0.00602441,69847.0,69831.0,0.07329655]
[1773184492030,0.00602441,69847.0,69831.0,0.0016952]
[1773184492332,0.0049124,69845.0,69831.0,0.0016952]
[1773184492557,0.0049124,69843.0,69831.0,0.0016952]
[1773184494441,0.07159016,69842.0,69831.0,0.0016952]
[1773184495378,0.0049124,69840.0,69827.0,0.00144]
[1773184495529,0.0049124,69840.0,69831.0,0.0002]
[1773184495741,0.0049124,69840.0,69822.0,0.0002]
[1773184496103,0.0049124,69840.0,69824.0,0.00164]
[1773184496610,0.0049124,69837.0,69824.0,0.0002]
[1773184496803,0.0049124,69835.0,69824.0,0.0002]
[1773184497938,0.0059124,69835.0,69824.0,0.0002]
[1773184498628,0.07159836,69834.0,69824.0,0.0002]
[1773184498834,0.0049124,69833.0,69817.0,0.0002]
[1773184499057,0.0049124,69829.0,69817.0,0.0002]
[1773184499471,0.0049124,69829.0,69817.0,0.07181537]
[1773184499864,0.0049124,69829.0,69817.0,0.0002]
[1773184500395,0.0049124,69829.0,69803.0,0.07162991]
[1773184500522,0.0049124,69820.0,69805.0,0.08083492]
[1773184501755,0.00144,69821.0,69805.0,0.08083492]
[1773184501756,0.14270182,69829.0,69811.0,0.00497894]
[1773184501961,0.00144,69841.0,69819.0,0.05468371]
[1773184502168,0.07303146,69841.0,69821.0,0.00497894]
[1773184502576,0.07303146,69841.0,69823.0,0.00497894]
[1773184503026,0.0049124,69839.0,69818.0,0.07161409]
[1773184503249,0.05468371,69840.0,69819.0,0.00144]
[1773184503442,0.05468371,69840.0,69820.0,0.00497894]
[1773184503812,0.0049124,69839.0,69822.0,0.00497894]
[1773184503986,0.21514013,69841.0,69822.0,0.00497894]
[1773184503987,0.07259146,69841.0,69822.0,0.00497894]
[1773184504354,0.07159146,69841.0,69822.0,0.00497894]
[1773184504566,0.07159146,69841.0,69824.0,0.00497894]
[1773184504768,0.0049124,69840.0,69824.0,0.00497894]
[1773184504962,0.05959611,69840.0,69825.0,0.00144]
[1773184505148,0.0049124,69839.0,69825.0,0.00144]
[1773184507639,0.07159426,69838.0,69826.0,0.07160656]
[1773184508735,0.07159426,69838.0,69825.0,0.07304673]
[1773184508736,0.0049124,69837.0,69827.0,0.00144]
[1773184509111,0.0049124,69837.0,69826.0,0.00144]
[1773184510103,0.0049124,69837.0,69826.0,0.07304562]
[1773184510104,0.07650818,69837.0,69826.0,0.07304562]
[1773184510377,0.07672819,69837.0,69826.0,0.07304562]
[1773184510959,0.0049124,69836.0,69826.0,0.00144]
[1773184511914,0.0049124,69836.0,69826.0,0.07304609]
[1773184512918,0.00454953,69836.0,69826.0,0.07304609]
[1773184513113,0.07159701,69836.0,69824.0,0.00144]
[1773184513414,0.00144,69835.0,69822.0,0.00144]
[1773184513621,0.00144,69835.0,69821.0,0.00144]
[1773184513792,0.0063524,69835.0,69821.0,0.00144]
[1773184514421,0.00617096,69835.0,69821.0,0.00144]
[1773184515003,0.07159836,69834.0,69817.0,0.07659391]
[1773184515197,0.0049124,69829.0,69816.0,0.00144]
[1773184515650,0.0049124,69829.0,69813.0,0.07161911]
[1773184515806,0.0049124,69827.0,69813.0,0.07161911]
[1773184516008,0.0049124,69827.0,69813.0,0.07305911]
[1773184516444,0.0049124,69827.0,69808.0,0.00164]
[1773184516599,0.0049124,69827.0,69808.0,0.07326469]
[1773184516810,0.00473091,69827.0,69809.0,0.07219711]
[1773184517017,0.07160656,69826.0,69809.0,0.07219711]
[1773184517224,0.0049124,69825.0,69809.0,0.07219711]
[1773184519224,0.0049124,69823.0,69809.0,0.07219696]
[1773184520372,0.0049124,69823.0,69809.0,0.07681411]
[1773184520802,0.11392134,69836.0,69813.0,0.00461715]
[1773184521000,0.00022001,69836.0,69821.0,0.00461715]
[1773184521200,0.00022001,69836.0,69823.0,0.00461715]
[1773184521735,0.07181649,69836.0,69823.0,0.00461715]
[1773184522447,0.00022001,69836.0,69823.0,0.00461715]
[1773184523020,0.07181646,69836.0,69823.0,0.00461715]
[1773184523221,0.00022001,69836.0,69824.0,0.07622576]
[1773184523452,0.07181666,69836.0,69824.0,0.07622576]
[1773184523650,0.07181666,69836.0,69825.0,0.00461715]
[1773184523851,0.00022001,69836.0,69825.0,0.00461715]
[1773184525145,0.00022001,69836.0,69826.0,0.07160656]
[1773184525854,0.00022001,69836.0,69826.0,0.07043344]
[1773184526132,0.00022001,69836.0,69825.0,0.07622426]
[1773184527854,0.07181662,69836.0,69825.0,0.00461715]
[1773184528734,0.07181662,69836.0,69824.0,0.07160834]
[1773184529037,0.07181662,69836.0,69822.0,0.07305036]
[1773184529038,0.07181662,69836.0,69823.0,0.07160964]
[1773184529395,0.00022001,69836.0,69823.0,0.07160964]
[1773184530228,0.00022001,69837.0,69824.0,0.00461715]
[1773184531026,0.00022001,69837.0,69825.0,0.07160759]
[1773184531643,0.00022001,69837.0,69826.0,0.00461715]
[1773184531815,0.00584001,69844.0,69828.0,0.00461715]
[1773184532113,0.00022001,69850.0,69830.0,0.00461715]
[1773184533068,0.00022001,69850.0,69832.0,0.00461715]
[1773184533266,0.00033204,69850.0,69832.0,0.00461715]
[1773184535126,0.00033204,69850.0,69833.0,0.07159938]
[1773184535460,0.00056204,69850.0,69834.0,0.00461715]
[1773184535634,0.00056204,69850.0,69836.0,0.00461715]
[1773184536214,0.00056204,69850.0,69835.0,0.00144]
[1773184536215,0.07157076,69861.0,69841.0,0.00461715]
[1773184536382,0.0715727,69860.0,69843.0,0.00461715]
[1773184537198,0.0715727,69860.0,69845.0,0.00461715]
[1773184537398,0.07179294,69859.0,69845.0,0.00461715]
[1773184537602,0.07179294,69859.0,69844.0,0.07158811]
[1773184537825,0.00514296,69857.0,69844.0,0.07158811]
[1773184538227,0.00022001,69850.0,69844.0,0.07158811]
[1773184540004,0.00022001,69850.0,69844.0,0.07258811]
[1773184541079,0.00022001,69858.0,69845.0,0.00461715]
[1773184541281,0.00022001,69859.0,69849.0,0.00461715]
[1773184541487,0.00022001,69859.0,69851.0,0.00461715]
[1773184541707,0.00022001,69865.0,69851.0,0.00461715]
[1773184541906,0.00046301,69872.0,69851.0,0.00461715]
[1773184542110,0.00046301,69872.0,69860.0,0.05470602]
[1773184542305,0.00046301,69872.0,69859.0,0.00605715]
[1773184543305,0.00046301,69872.0,69860.0,0.07157171]
[1773184543516,0.00046301,69872.0,69860.0,0.07618886]
[1773184546272,0.00068302,69872.0,69860.0,0.07618886]
[1773184546874,0.00078302,69872.0,69860.0,0.07618886]
[1773184550416,0.00078302,69872.0,69860.0,0.07157171]
[1773184550615,0.00078302,69872.0,69861.0,0.00460871]
[1773184553434,0.00078302,69872.0,69862.0,0.07156966]
[1773184553599,0.00078302,69872.0,69862.0,0.07617837]
[1773184554642,0.00089507,69872.0,69862.0,0.07617837]
[1773184557390,0.00089507,69872.0,69863.0,0.00460871]
[1773184557587,0.00997489,69882.0,69863.0,0.00460871]
[1773184557781,0.00997489,69882.0,69872.0,0.07155942]
[1773184557928,0.00997489,69882.0,69873.0,0.00460871]
[1773184559669,0.00997489,69882.0,69873.0,0.00560871]
[1773184560204,0.00997489,69882.0,69875.0,0.00460871]
[1773184560401,0.02335,69900.0,69881.0,0.00460871]
[1773184560576,0.02335,69900.0,69883.0,0.00460871]
[1773184560901,0.00469733,69898.0,69884.0,0.00144]
[1773184561113,0.00469733,69893.0,69885.0,0.00144]
[1773184561308,0.00469733,69893.0,69881.0,0.00144]
[1773184562040,0.00507075,69893.0,69881.0,0.0729893]
[1773184566849,0.00529076,69893.0,69881.0,0.0729893]
[1773184569007,0.00059343,69893.0,69881.0,0.0729893]
[1773184569258,0.00059343,69893.0,69882.0,0.00460871]
[1773184570393,0.00059343,69893.0,69883.0,0.07154815]
[1773184570546,0.00059343,69893.0,69883.0,0.07615686]
[1773184573947,0.00469733,69892.0,69880.0,0.07155123]
[1773184574158,0.00059343,69893.0,69884.0,0.00144]
[1773184574580,0.02357001,69900.0,69890.0,0.0546063]
[1773184574754,0.02368199,69900.0,69890.0,0.00144]
[1773184575019,0.001,69893.0,69890.0,0.00144]
[1773184575157,0.001,69892.0,69889.0,0.00144]
[1773184575367,0.00469733,69899.0,69889.0,0.00144]
[1773184575740,0.02368199,69900.0,69889.0,0.00144]
[1773184575944,0.02368199,69900.0,69890.0,0.00460871]
[1773184576162,0.02368199,69900.0,69890.0,0.00453177]
[1773184576595,0.02368199,69900.0,69891.0,0.07153996]
[1773184576797,0.02368199,69900.0,69892.0,0.00460871]
[1773184577382,0.02368199,69900.0,69891.0,0.07153996]
[1773184577609,0.00469733,69899.0,69891.0,0.07153996]
[1773184578493,0.02368199,69900.0,69890.0,0.07154099]
[1773184580145,0.02368199,69900.0,69896.0,0.00048]
[1773184583329,0.02368199,69900.0,69890.0,0.07153897]
[1773184584091,0.0286325,69900.0,69890.0,0.07153897]
[1773184586724,0.02368199,69900.0,69890.0,0.07153897]
[1773184588291,0.02368199,69900.0,69890.0,0.07173897]
[1773184588496,0.07153178,69899.0,69883.0,0.0002]
[1773184588696,0.00495051,69897.0,69884.0,0.00144]
[1773184589318,0.00495051,69896.0,69885.0,0.00144]
[1773184589907,0.00495051,69896.0,69880.0,0.0002]
[1773184590170,0.00495051,69889.0,69876.0,0.0002]
[1773184590371,0.00495051,69889.0,69876.0,0.07175531]
[1773184590590,0.00144,69890.0,69880.0,0.00476506]
[1773184591071,0.00144,69896.0,69881.0,0.00144]
[1773184591250,0.00495051,69895.0,69881.0,0.00144]
[1773184591448,0.00495051,69895.0,69881.0,0.07298921]
[1773184591449,0.07153689,69894.0,69881.0,0.07298921]
[1773184591630,0.07153689,69894.0,69881.0,0.00144]
[1773184591833,0.07153689,69894.0,69882.0,0.00144]
[1773184591834,0.00495051,69893.0,69882.0,0.00144]
[1773184592055,0.00495051,69893.0,69880.0,0.0715508]
[1773184592259,0.00495051,69893.0,69881.0,0.00144]
[1773184592469,0.00474871,69893.0,69881.0,0.00144]
[1773184593903,0.0546063,69891.0,69878.0,0.07155315]
[1773184594082,0.00495051,69890.0,69878.0,0.07155315]
[1773184594279,0.00495051,69890.0,69879.0,0.00144]
[1773184595069,0.00495051,69890.0,69881.0,0.0002]
[1773184595404,0.00495051,69890.0,69879.0,0.00144]
[1773184596368,0.00495051,69889.0,69878.0,0.00144]
[1773184597316,0.00495051,69889.0,69876.0,0.0002]
[1773184597517,0.00495051,69889.0,69877.0,0.00144]
[1773184598274,0.00495051,69888.0,69876.0,0.0002]
[1773184598474,0.00495051,69888.0,69877.0,0.00144]
[1773184599266,0.00495051,69888.0,69876.0,0.0002]
[1773184599518,0.00495051,69888.0,69877.0,0.00144]
[1773184599996,0.00144,69890.0,69877.0,0.00144]
[1773184600198,0.00144,69891.0,69877.0,0.00144]
[1773184600402,0.00495051,69890.0,69878.0,0.07155327]
[1773184600948,0.00495051,69890.0,69879.0,0.00144]
[1773184602199,0.0546063,69890.0,69879.0,0.00144]
[1773184602404,0.00495051,69887.0,69879.0,0.00144]
[1773184602979,0.00495051,69887.0,69878.0,0.00144]
[1773184603587,0.00495051,69887.0,69874.0,0.0002]
[1773184604130,0.00495051,69887.0,69875.0,0.00144]
[1773184604412,0.00495051,69885.0,69875.0,0.00144]
[1773184604909,0.00495051,69885.0,69871.0,0.07155994]
[1773184605798,0.00495051,69885.0,69871.0,0.076325]
[1773184606475,0.07649672,69885.0,69871.0,0.076325]
[1773184606870,0.07154621,69885.0,69872.0,0.00144]
[1773184607243,0.00495051,69884.0,69872.0,0.00144]
[1773184608420,0.00495051,69884.0,69871.0,0.07156039]
[1773184608630,0.00495051,69884.0,69873.0,0.00144]
[1773184609074,0.00481776,69883.0,69873.0,0.00144]
[1773184610751,0.07154819,69883.0,69873.0,0.00144]
[1773184610951,0.00489641,69882.0,69873.0,0.00144]
[1773184612345,0.00489641,69882.0,69873.0,0.07299828]
[1773184612554,0.00144,69890.0,69874.0,0.00144]
[1773184612741,0.00144,69890.0,69875.0,0.00639471]
[1773184612944,0.07298117,69890.0,69876.0,0.07155532]
[1773184613294,0.07787758,69890.0,69876.0,0.07155532]
[1773184613688,0.00633641,69890.0,69876.0,0.07155532]
[1773184613883,0.00144,69890.0,69876.0,0.07155532]
[1773184614082,0.00633641,69891.0,69877.0,0.00495471]
[1773184614966,0.00022001,69893.0,69878.0,0.07155327]
[1773184615205,0.00022001,69893.0,69881.0,0.00495471]
[1773184615612,0.16655223,69900.0,69881.0,0.00495471]
[1773184615806,0.02368199,69900.0,69881.0,0.00495471]
[1773184616049,0.095213,69900.0,69881.0,0.00495471]
[1773184616262,0.10010941,69900.0,69881.0,0.00495471]
[1773184616982,0.00489641,69898.0,69882.0,0.07154918]
[1773184617938,0.00489641,69898.0,69882.0,0.07650389]
[1773184618150,0.00022001,69893.0,69882.0,0.07650389]
[1773184621886,0.00489641,69892.0,69882.0,0.00144]
[1773184622892,0.00489641,69892.0,69877.0,0.07175409]
[1773184623038,0.00489641,69892.0,69877.0,0.07319409]
[1773184623219,0.00489641,69889.0,69877.0,0.07175409]
[1773184623429,0.00489641,69888.0,69877.0,0.07175409]
[1773184623828,0.00489641,69888.0,69877.0,0.0002]
[1773184624040,0.00489641,69888.0,69877.0,0.07175425]
[1773184625082,0.00489641,69888.0,69877.0,0.07175419]
[1773184626188,0.00489641,69887.0,69877.0,0.0002]
[1773184626597,0.00489641,69887.0,69876.0,0.07155501]
[1773184628178,0.0546063,69885.0,69869.0,0.0003667]
[1773184628372,0.00489641,69879.0,69865.0,0.07176594]
[1773184628553,0.00489641,69877.0,69865.0,0.07176594]
[1773184629423,0.00489641,69877.0,69865.0,0.0002]
[1773184629769,0.00498716,69877.0,69865.0,0.0002]
[1773184630193,0.07645173,69876.0,69865.0,0.0002]
[1773184630802,0.07155532,69876.0,69865.0,0.0002]
[1773184630965,0.00489641,69875.0,69863.0,0.0002]
[1773184632147,0.07155737,69874.0,69863.0,0.0002]
[1773184632289,0.00489641,69873.0,69863.0,0.0002]
[1773184632670,0.00489641,69873.0,69862.0,0.0002]
[1773184632927,0.00489641,69871.0,69861.0,0.07301069]
[1773184635851,0.00489641,69871.0,69861.0,0.07321069]
[1773184636390,0.00489641,69870.0,69858.0,0.0002]
[1773184637190,0.07156249,69869.0,69858.0,0.0002]
[1773184637393,0.00489641,69868.0,69858.0,0.0002]
[1773184639247,0.07156454,69867.0,69858.0,0.0002]
[1773184639447,0.07617201,69867.0,69858.0,0.0002]
[1773184639997,0.00144,69866.0,69858.0,0.0002]
[1773184640194,0.00442592,69865.0,69858.0,0.0002]
[1773184640389,0.07616279,69876.0,69859.0,0.00476586]
[1773184640594,0.00144,69874.0,69860.0,0.05464397]
[1773184641017,0.00460747,69873.0,69860.0,0.05464397]
[1773184642118,0.00081846,69865.0,69861.0,0.07157069]
[1773184642318,0.07155854,69873.0,69861.0,0.07157069]
[1773184642565,0.00460747,69872.0,69861.0,0.07157069]
[1773184643675,9.075e-05,69877.0,69862.0,0.00476586]
[1773184643828,9.075e-05,69877.0,69866.0,0.00476586]
[1773184644030,9.075e-05,69877.0,69868.0,0.00476586]
[1773184644870,0.00460747,69875.0,69866.0,0.00144]
[1773184645118,0.00460747,69875.0,69860.0,0.0717712]
[1773184645521,0.00460747,69875.0,69860.0,0.0002]
[1773184645821,0.00460747,69869.0,69860.0,0.0002]
[1773184649962,0.00482748,69869.0,69860.0,0.0002]
[1773184651221,0.00460747,69867.0,69860.0,0.0002]
[1773184651419,0.00460747,69867.0,69858.0,0.0002]
[1773184651420,0.00442592,69867.0,69858.0,0.0002]
[1773184652515,0.00022001,69869.0,69859.0,0.00476586]
[1773184652740,9.075e-05,69877.0,69859.0,0.00476586]
[1773184653014,9.075e-05,69877.0,69861.0,0.00476586]
[1773184653438,0.14290279,69882.0,69867.0,0.00476586]
[1773184653637,0.00016,69882.0,69871.0,0.00476586]
[1773184654680,0.00016,69882.0,69873.0,0.00476586]
[1773184655486,0.00016,69882.0,69874.0,0.00620586]
[1773184656715,0.00016,69882.0,69876.0,0.00476586]
[1773184658016,0.00038001,69882.0,69876.0,0.00476586]
[1773184658926,0.00038001,69882.0,69873.0,0.07299839]
[1773184659126,0.00498748,69882.0,69873.0,0.07299839]
[1773184659327,0.00038001,69882.0,69873.0,0.07299839]
[1773184661159,0.00038001,69882.0,69873.0,0.00144]
[1773184661360,0.00498748,69882.0,69872.0,0.07155909]
[1773184662342,0.00038001,69882.0,69873.0,0.00476586]
[1773184663165,0.00038001,69882.0,69874.0,0.07155737]
[1773184666715,0.00038001,69882.0,69872.0,0.07155909]
[1773184667650,0.00038001,69882.0,69855.0,0.0047921]
[1773184667651,0.00483783,69880.0,69855.0,0.0047921]
[1773184667854,0.00483783,69880.0,69860.0,0.0730109]
[1773184668041,0.00483783,69878.0,69860.0,0.0730109]
[1773184669167,0.00483783,69876.0,69860.0,0.0730109]
[1773184670421,0.00483783,69876.0,69860.0,0.0715709]
[1773184670627,0.00483783,69876.0,69860.0,0.07157144]
[1773184670976,0.00483783,69876.0,69859.0,0.07186348]
[1773184671330,0.00499344,69874.0,69859.0,0.07186348]
[1773184671535,0.00144,69873.0,69859.0,0.07186348]
[1773184671769,0.00499344,69872.0,69859.0,0.07186348]
[1773184673426,0.00499344,69870.0,69859.0,0.07186348]
[1773184675253,0.00499344,69870.0,69859.0,0.00029075]
[1773184675456,0.07655583,69870.0,69859.0,0.00029075]
[1773184675853,0.00499344,69870.0,69859.0,0.07186265]
[1773184676535,0.00499344,69869.0,69859.0,0.00029075]
[1773184676954,0.00499344,69869.0,69859.0,0.07186328]
[1773184678336,0.00144,69873.0,69859.0,0.07186328]
[1773184678538,0.07176832,69883.0,69860.0,0.00455495]
[1773184678740,0.07299022,69881.0,69860.0,0.00455495]
[1773184679570,0.00144,69880.0,69862.0,0.00455495]
[1773184679768,0.00144,69880.0,69864.0,0.00455495]
[1773184680731,0.00126001,69880.0,69864.0,0.00455495]
[1773184682150,0.00126001,69880.0,69865.0,0.07156659]
[1773184682359,0.00022001,69883.0,69871.0,0.00455495]
[1773184682565,0.00022001,69880.0,69873.0,0.00455495]
[1773184683854,0.00022001,69880.0,69873.0,0.00555495]
[1773184684079,0.00022001,69880.0,69872.0,0.00144]
[1773184684284,0.00022001,69880.0,69873.0,0.07155839]
[1773184684499,0.00022001,69880.0,69873.0,0.07255839]
[1773184684918,0.00022001,69880.0,69865.0,0.07156659]
[1773184685153,0.00499344,69879.0,69871.0,0.00144]
[1773184685336,0.00499344,69878.0,69865.0,0.00144]
[1773184685787,0.00499344,69878.0,69864.0,0.07156714]
[1773184685920,0.00499344,69878.0,69873.0,0.001]
[1773184686107,0.00499344,69878.0,69864.0,0.07156714]
[1773184686108,0.0715543,69877.0,69864.0,0.07156714]
[1773184686309,0.00499344,69876.0,69865.0,0.00144]
[1773184686515,0.00499344,69879.0,69865.0,0.00144]
[1773184686724,0.00499344,69879.0,69862.0,0.07166841]
[1773184687175,0.00499344,69877.0,69862.0,0.0001008]
[1773184688049,0.00499344,69877.0,69859.0,0.00029075]
[1773184688259,0.00499344,69875.0,69859.0,0.00029075]
[1773184688457,0.00499344,69869.0,69859.0,0.00029075]
[1773184688887,0.00499344,69869.0,69859.0,0.07186346]
[1773184689056,0.00499344,69873.0,69859.0,0.07186346]
[1773184689551,0.00499344,69873.0,69859.0,0.07641841]
[1773184690187,0.07155942,69872.0,69859.0,0.07641841]
[1773184690504,0.07655286,69872.0,69859.0,0.07641841]
[1773184690727,0.07155942,69872.0,69859.0,0.07186346]
[1773184690916,0.00499344,69871.0,69859.0,0.07186346]
[1773184691682,0.07655433,69871.0,69859.0,0.07186346]
[1773184692357,0.07156089,69871.0,69859.0,0.07186346]
[1773184692532,0.00499344,69870.0,69859.0,0.00029075]
[1773184693485,0.00499344,69870.0,69859.0,0.07186324]
[1773184694562,0.00499344,69869.0,69859.0,0.00029075]
[1773184694766,0.00499344,69869.0,69859.0,0.07186328]
[1773184695122,0.07156089,69871.0,69859.0,0.07186328]
[1773184695977,0.07156089,69871.0,69865.0,0.0004]
[1773184697346,0.07256089,69871.0,69865.0,0.0004]
[1773184702217,0.001,69871.0,69865.0,0.0004]
[1773184702640,0.001,69871.0,69865.0,0.0006]
[1773184703161,0.00144,69871.0,69865.0,0.0006]
[1773184703654,0.00244,69871.0,69865.0,0.0006]
[1773184704439,0.001,69871.0,69865.0,0.0006]
[1773184704638,0.00244,69871.0,69865.0,0.0006]
[1773184704841,0.07400081,69871.0,69865.0,0.0006]
[1773184705797,0.07300081,69871.0,69865.0,0.0006]
[1773184705999,0.07400081,69871.0,69865.0,0.0006]
[1773184706575,0.00244,69871.0,69865.0,0.0006]
[1773184707488,0.001,69871.0,69865.0,0.0006]
[1773184707826,0.001,69871.0,69865.0,0.07216645]
[1773184708028,0.14292822,69875.0,69865.0,0.07216645]
[1773184708235,0.14292822,69877.0,69866.0,0.00483875]
[1773184708433,0.001,69871.0,69867.0,0.05465247]
[1773184708658,0.001,69871.0,69865.0,0.07216645]
[1773184708659,0.00030059,69871.0,69868.0,0.00483875]
[1773184708784,0.00022001,69880.0,69870.0,0.00483875]
[1773184709134,0.00022001,69880.0,69871.0,0.00144]
[1773184710686,0.00022001,69878.0,69871.0,0.00144]
[1773184712400,0.00022001,69878.0,69872.0,0.07155942]
[1773184719482,0.00022001,69880.0,69872.0,0.07155942]
[1773184719833,0.00022001,69880.0,69873.0,0.00144]
[1773184720458,0.00022001,69878.0,69873.0,0.00144]
[1773184721304,0.00022001,69878.0,69873.0,0.00627875]
[1773184721861,0.00022001,69878.0,69874.0,0.07155737]
[1773184724091,0.00022001,69878.0,69875.0,0.00483875]
[1773184724588,0.00022001,69878.0,69874.0,0.07255737]
[1773184724788,0.00022001,69878.0,69874.0,0.07155737]
[1773184725196,0.00022001,69878.0,69875.0,0.001]
[1773184725519,0.00022001,69878.0,69874.0,0.07155737]
[1773184725787,0.00022001,69878.0,69874.0,0.07255737]
[1773184726148,0.00022001,69878.0,69875.0,0.00483875]
[1773184727827,0.00022001,69878.0,69875.0,0.00583875]